Cogmind - Beta 15 @@@ ROGUE MODE // 2025.05.30 @ 00:22:15 Player: jumpy Result: Destroyed by 14-S8R(R) with Subdweller Beam Cannon Performance ------------- Evolutions (0) 0 Regions Visited (2) 400 Robots Destroyed (12) 60 Value Destroyed (210) 210 Prototype IDs (0) 0 Alien Tech Used (0) 0 Bonus (0) 0 TOTAL SCORE: 670 Bonus ------- None Cogmind --------- Core Integrity 0/250 Matter 288/300 Energy 84/100 System Corruption 0% Temperature Warm (138) Movement Core (750) Ox14 Location -10/Subcaves Parts ------- > --- POWER (1) -------- (None) > --- PROPULSION (2) --- (None) > --- UTILITY (2) ------ High-capacity Storage Unit Seismic Detector > --- WEAPON (2) ------- Subdweller Laser > --- INVENTORY (20) --- Light Ion Engine Improved Terrain Scanner Seismic Detector Mining Laser Peak State ------------ > --- POWER ------------ Ion Engine > --- PROPULSION ------- Light Treads Light Treads > --- UTILITY ---------- Small Storage Unit Seismic Detector > --- WEAPON ----------- Assault Rifle Light Assault Rifle > --- INVENTORY -------- Light Ion Engine Wheel Compact Wheel [Rating: 7] Favorites ----------- Power Ion Engine Engine Ion Engine Propulsion Light Treads Treads Light Treads Wheel Compact Wheel Utility Seismic Detector Device Seismic Detector Storage High-capacity Storage Unit Weapon Assault Rifle Energy Gun Small Laser Ballistic Gun Assault Rifle Build | -11 -10 -10 ------- Run | Yrd Mat Sub Slots Evolved . | . . . Power . | . . . Propulsion . | . . . Utility . | . . . Weapon . | . . . Parts Attached 13 | 8 2 3 Power 2 | 2 . . Engine 2 | 2 . . Core . | . . . Reactor . | . . . Propulsion 4 | 2 . 2 Treads 2 | 2 . . Leg . | . . . Wheel 2 | . . 2 Hover . | . . . Flight . | . . . Utility 3 | 2 1 . Device 1 | 1 . . Storage 2 | 1 1 . Processor . | . . . Hackware . | . . . Protection . | . . . Artifact . | . . . Weapon 4 | 2 1 1 Energy Gun 2 | . 1 1 Energy Cannon . | . . . Ballistic Gun 2 | 2 . . Ballistic Cannon . | . . . Launcher . | . . . Special Weapon . | . . . Impact Weapon . | . . . Slashing Weapon . | . . . Piercing Weapon . | . . . Special Melee Weapon . | . . . Unidentified Prototypes . | . . . Parts Lost 7 | . . 7 Power 1 | . . 1 Propulsion 4 | . . 4 Utility . | . . . Weapon 2 | . . 2 Highest Loss Streak 7 | . . 7 To Critical Strikes . | . . . Average Backups 4 | 3 6 5 Power . | . 1 1 Propulsion 1 | 1 2 1 Utility 1 | . 2 2 Weapon . | . 1 1 Tool/Special . | . . . Unused Backups 1 | . . 1 Power . | . . . Propulsion . | . . . Utility 1 | . . 1 Weapon . | . . . Tool/Special . | . . . Average Slot Usage (%) 94 | . 100 91 Engine 12 | . 14 11 Treads 26 | . 28 25 Device 14 | . 14 14 Storage 14 | . 14 14 Energy Gun 8 | . 1 12 Ballistic Gun 16 | . 26 11 Peak Build Rating 7 | 7 7 7 Average Rating 6 | 5 6 6 On Entrance 4 | . 7 7 Naked Turns . | . . . Heaviest Build 49 | 14 49 49 Greatest Support 40 | 40 40 40 Greatest Overweight (x) 13 | . 1 13 Average Overweight (x) . | . . 1 Largest Inventory Capacity 20 | 8 20 20 Average Capacity 14 | 7 19 20 Most Carried 7 | 6 7 6 Average Carried 4 | 3 6 5 Final Capacity 20 | 8 20 20 Final Carried 6 | 6 6 4 Class Distribution -------------------- 100% | Mutant Dominant Class ---------------- Mutant | -10/Materials Mutant | -10/Subcaves Resources | -11 -10 -10 ----------- Run | Yrd Mat Sub Matter Collected 453 | 356 34 63 Remotely . | . . . Salvage Created 440 | 221 107 112 Parts 34 | 22 8 4 Haulers Intercepted . | . . . Recyclers Shooed . | . . . Parts Field Recycled . | . . . Retrieved Matter . | . . . Parts Self-Destructed 5 | . . 5 Prevented . | . . . Kills | -11 -10 -10 ------- Run | Yrd Mat Sub Combat Hostiles Destroyed 4 | . 2 2 Guns 4 | . 2 2 Classes Destroyed 5 | 3 1 1 Worker 1 | 1 . . Tunneler 6 | 6 . . Recycler 1 | 1 . . Grunt 2 | . 2 . Subdweller 2 | . . 2 Best Kill Streak 3 | 3 2 1 Combat Bots Only 2 | . 2 1 Max Kills in Single Turn 1 | 1 1 1 Gunslinging . | . . . Exploded . | . . . Melee . | . . . Uniques/NPCs Destroyed . | . . . Combat | -11 -10 -10 -------- Run | Yrd Mat Sub Hostile Shots Fired 48 | . 9 39 Missed 15 | . 3 12 Hits 33 | . 6 27 Projectile 33 | . 6 27 AOE 3 | . . 3 Critical Strikes 1 | . . 1 Damage Taken 946 | . 86 860 Core 273 | . 24 249 Absorbed by Shields . | . . . Core Remaining (%) 100 | 100 . . Volleys Fired 54 | 24 6 24 Largest 2 | 2 2 2 Hottest 60 | 40 40 60 Shots Fired 81 | 43 12 26 Gun 81 | 43 12 26 Cannon . | . . . Launcher . | . . . Special . | . . . Kinetic 71 | 43 12 16 Thermal 10 | . . 10 Explosive . | . . . Electromagnetic . | . . . Robot Hit Streak 11 | 4 9 11 Robot Miss Streak 3 | 3 1 2 Penetration Max . | . . . Secondary Targets . | . . . Shots Hit Robots 52 | 25 10 17 Core Hits 24 | 12 5 7 Critical Kills . | . . . Critical Parts Destroyed . | . . . Critical Strikes . | . . . Melee Attacks . | . . . Impact . | . . . Slashing . | . . . Piercing . | . . . Sneak Attacks . | . . . Combat Hostiles . | . . . Follow-up Attacks . | . . . Damage Inflicted 583 | 276 105 202 Guns 580 | 276 105 199 Cannons . | . . . Explosions . | . . . Melee . | . . . Ramming 3 | . . 3 Kinetic 516 | 276 105 135 Thermal 64 | . . 64 Explosive . | . . . Electromagnetic . | . . . Impact . | . . . Slashing . | . . . Piercing . | . . . Highest Corruption . | . . . Average Corruption . | . . . Corruption Purged . | . . . Corruption Blocked . | . . . Overload Shots . | . . . Overflow Damage . | . . . Projectiles . | . . . Explosions . | . . . Melee . | . . . Knockbacks . | . . . Impact . | . . . Kinetic . | . . . Secondary . | . . . Self-Inflicted Damage . | . . . Shots . | . . . Rammed 4 | 1 . 3 Targets Rammed 4 | 1 . 3 Kicked . | . . . Crushed . | . . . Highest Temperature 264 | . 9 264 Average Temperature 102 | . 9 196 Received Heat Transfer 555 | . 48 507 Siege Activations . | . . . Martial Activations . | . . . Shielding Activations . | . . . Robots Disrupted . | . . . Combat Hostiles . | . . . Robots Corrupted . | . . . Combat Hostiles . | . . . Parts Fried . | . . . Impact Corruptions . | . . . Robots Melted . | . . . Combat Hostiles . | . . . Parts Melted . | . . . Heat Transferred 150 | . . 150 Parts Sabotaged . | . . . Parts Stolen . | . . . Parts Stripped . | . . . Power Chain Reactions . | . . . Alert | -11 -10 -10 ------- Run | Yrd Mat Sub Maximum Alert Level . | . . . Low Security (%) 100 | 100 100 . Level 1 . | . . . Level 2 . | . . . Level 3 . | . . . Level 4 . | . . . Level 5 . | . . . High Security . | . . . Max Security . | . . . Peak Influence 50 | 10 50 . Initial . | . . . Average 4 | 1 10 . Influence Increases 90 | 40 50 . Destroy 0b10 Robot/C 40 | . 40 . Destroy 0b10 Robot/NC 40 | 40 . . Destroy Leader 10 | . 10 . Influence Decreases 90 | 40 20 30 Entered New Map 15 | . . 15 Time Decay 75 | 40 20 15 Squads Dispatched . | . . . Investigation . | . . . Extermination . | . . . Reinforcement . | . . . Assault . | . . . Garrison . | . . . Intercept . | . . . Searches Triggered . | . . . Construction Impeded . | . . . Haulers Reinforced . | . . . Active Scanning Responses . | . . . Cargo Convoy Interrupts . | . . . Stealth | -11 -10 -10 --------- Run | Yrd Mat Sub Distress Signals . | . . . Communications Jammed . | . . . Distress Signals . | . . . Times Spotted 7 | . 2 5 Peak Tracking Total 2 | . 2 2 Tactical Retreats . | . . . Traps | -11 -10 -10 ------- Run | Yrd Mat Sub Traps Triggered . | . . . Indirectly . | . . . Trap Hack Attempts . | . . . Triggered . | . . . Disarmed . | . . . Reprogrammed . | . . . Reused . | . . . Traps Extracted . | . . . Installed . | . . . Triggered . | . . . Machines | -11 -10 -10 ---------- Run | Yrd Mat Sub Machines Disabled . | . . . Max in Single Turn . | . . . Machines Repaired . | . . . Machines Dismantled . | . . . Machines Sabotaged . | . . . Overloaded Fab Kills . | . . . Hacking | -11 -10 -10 --------- Run | Yrd Mat Sub Machines Accessed . | . . . Terminals . | . . . Fabricators . | . . . Repair Stations . | . . . Recycling Units . | . . . Scanalyzers . | . . . Garrison Access . | . . . Total Hacks . | . . . Successful . | . . . Failed . | . . . Catastrophic . | . . . Database Lockouts . | . . . Manual . | . . . Terminals . | . . . Fabricators . | . . . Repair Stations . | . . . Recycling Units . | . . . Scanalyzers . | . . . Garrison Access . | . . . Terminal Hacks . | . . . Fabricator Hacks . | . . . Repair Station Hacks . | . . . Recycling Unit Hacks . | . . . Scanalyzer . | . . . Garrison Access Hacks . | . . . Unauthorized Hacks . | . . . Terminals . | . . . Fabricators . | . . . Repair Stations . | . . . Recycling Units . | . . . Scanalyzers . | . . . Garrison Access . | . . . Data Cores Recovered . | . . . Used . | . . . Hacking Detections . | . . . Full Trace Events . | . . . Feedback Events . | . . . Feedback Blocked . | . . . Robot Schematics Acquired . | . . . Robots Built . | . . . Authchips . | . . . Time . | . . . Total Robot Build Rating . | . . . Part Schematics Acquired . | . . . Parts Built . | . . . Authchips . | . . . Time . | . . . Total Part Build Rating . | . . . Parts Repaired . | . . . Time . | . . . Parts Recycled . | . . . Recycled Matter . | . . . Retrieved Matter . | . . . Retrieved Components . | . . . Parts Scanalyzed . | . . . Part Schematics Acquired . | . . . Parts Damaged . | . . . Bothacking | -11 -10 -10 ------------ Run | Yrd Mat Sub Used RIF Installer . | . . . Robots Hacked . | . . . Non-combat . | . . . Combat . | . . . Robot Hacks Applied . | . . . Relay Couplers Released . | . . . Fabnet Peak Effective % . | . . . Robots Rewired . | . . . Allies Hacked . | . . . Hacks Repelled . | . . . Allies | -11 -10 -10 -------- Run | Yrd Mat Sub Total Allies . | . . . Largest Group . | . . . Highest-Rated Group . | . . . Highest-Rated Ally . | . . . Total Orders . | . . . Ally Attacks . | . . . Total Damage . | . . . Kills . | . . . Allies Corrupted . | . . . Allies Melted . | . . . Intel | -11 -10 -10 ------- Run | Yrd Mat Sub Active Infowar (turns) 583 | 171 145 267 Seismic 583 | 171 145 267 Robot Analysis Total . | . . . Derelict Logs Recovered . | . . . Drone Launches . | . . . Drone Recoveries . | . . . Exploration | -11 -10 -10 ------------- Run | Yrd Mat Sub Turns Passed 687 | 275 145 267 Spaces Moved 250 | 125 39 86 Core 5 | 4 . 1 Treads 237 | 121 39 77 Legs . | . . . Wheels 8 | . . 8 Hover . | . . . Flight . | . . . Fastest Speed 50 | 50 160 105 Average Speed 193 | 156 225 233 Slowest Speed 700 | 160 240 700 Overloaded Moves . | . . . Propulsion Burnouts . | . . . Robots Hopped . | . . . Potential Cave-ins . | . . . Cave-ins Triggered . | . . . Exploration Rate (%) 8 | 8 5 11 Regions Visited 2 Branch Regions 1 Pre-discovered Areas . | . . . Known Exits Taken . | . . . Unknown Exits Taken 2 | 1 1 . Scrap Searched . | . . . Spaces Dug . | . . . Terrain Destroyed . | . . . Melee . | . . . Projectile . | . . . AOE . | . . . Terrain Rammed . | . . . Walls Destroyed . | . . . Machines Disabled . | . . . Actions | -11 -10 -10 --------- Run | Yrd Mat Sub Total 364 | 162 86 116 Wait 38 | . 38 . Move 248 | 124 38 86 Hop . | . . . Pick Up 5 | 5 . . Fast Attach 9 | 7 1 1 Attach 2 | . . 2 Detach . | . . . Swap 2 | 1 1 . Drop 2 | . 2 . Fire 54 | 24 6 24 Melee . | . . . Ram 1 | . . 1 Kick . | . . . Crush 3 | 1 . 2 Escape Stasis . | . . . Rewire . | . . . Trap . | . . . Miscellaneous . | . . . Route ------- -11/Scrapyard -10/Materials (discovered 2 exits: [*Min] / [*Sub]) -10/Subcaves History --------- Turn | Location | Event 8 | -11/Scrapyard | Discovered new exit (range 15) 276 | -11/Scrapyard | Entered Materials 276 | -10/Materials | Discovered new exit (range 8) 304 | -10/Materials | Discovered new exit (range 7) 313 | -10/Materials | Build established: Mutant 421 | -10/Materials | Entered Subcaves 422 | -10/Subcaves | Approached by a straggling Scientist 497 | -10/Subcaves | Core integrity fell below 50% 649 | -10/Subcaves | Ambushed by Subdweller buried in earth 662 | -10/Subcaves | Core integrity fell below 20% 688 | -10/Subcaves | Destroyed by 14-S8R(R) with Subdweller Beam Cannon Last Messages --------------- 00634_ O8-E6M(c) destroyed. 00636_ 05-4K0(R) destroyed. 00639_ Subatomizers dissect the Sub. Monowheel. 00641_ 89-2FV(R) affixes Scrap Shield Fragment to Scrap Shield. 00649_ Ion Engine destroyed. 00650_ 14-S8R(R): "ARGHSUB!" 00650_ Subatomizers dissect the Sub. Monowheel. 00654_ Slammed into 14-S8R(R). 00657_ Lgt. Treads destroyed. 00657_ Sml. Laser destroyed. 00659_ Slammed into 14-S8R(R). 00661_ Lgt. Treads destroyed. 00662_ Slammed into 14-S8R(R). 00665_ 89-2FV(R) affixes Scrap Shield Fragment to Scrap Shield. 00669_ 14-S8R(R) affixes Scrap Shield Fragment to Scrap Shield. 00670_ Acquired 8 matter. 00674_ Wheel destroyed. 00680_ Com. Wheel destroyed. 00684_ Critical hit (Meltdown: +300). 00687_ Acquired Sub. Laser. Map ----- +----------------------------------------------------+ | ?????????????????????????????????????????????????? | | ?????????????????????????????????????????????????? | | ?????????????????????????????????????????????????? | | ?????????????????????????????????????????????????? | | ?????????????????????????????????????????????????? | | ?????????????????????????????????????????????????? | | ?????????????????????????????????????????????????? | | ?????????????????????????????????????????????????? | | ?????????????????????????????????????????????????? | | ?????????????????????????????????????????????????? | | ???????#?????????????????????????????????????????? | | ????? #????????????????????????????????????????? | | ??? ?????????????????????????????????????????? | | ?? ?????????????????????????????????????????? | | ??? ??####???????????????????????????????????? | | ???# ?## #???????????????????????????????????? | | ????# ## ???????????????????????????????????? | | ###?# #???????????????????????????????????? | | # ## % #???????????????????????????????????? | | % ####????????????????? ##????????????? | | ## % ####????????????? #????????????? | | ?# #??# #???#######? " #?????????????? | | ??# #### ###?# #"# "#??????????????? | | ??# # ## ;;### #??????????????? | | ### !%= % ;;; #??????????????? | | = !R%=@ R #???????????????????? | | ##" ! ###???????????????????? | | # ##" ; * * ;#?????????????????????? | | ## ###" ;;;; ;;#????????????????????? | | ?# #?## ; # #????????????????????? | | ## ##??###; ###; ;#????????????????????? | | # ##?????####?#; ##????????????????????? | | # ##??????????##; ;#?????????????????????? | | #??????????# ; ##?????????????????????? | | #??????????##;; ;; ##??????????????????????? | | ##??????????## ;###???????????????????????? | | ##?????????? ;##?????????????????????????? | | #????????? ###??????????????????????????? | | ## #????????? #????????????????????????????? | | #?# ##????????? ?????????????????????????????? | | ??# #????????? ?????????????????????????????? | | ?## #?????????? ?????????????????????????????? | | ## #######?????? ?????????????????????????????? | | # ## ##????????????????????????????????????? | | # ##???????????????????????????????????? | | # #???????????????????????????????????? | | ## ##???????????????????????????????????? | | ?## #????????????????????????????????????? | | ??## ##???????????????????????????????????? | | ???# #???????????????????????????????????? | +----------------------------------------------------+ Best States ------------- Heat Dissipation 25 Energy Generation 10 Energy Capacity 250 Matter Stores 300 Matter Capacity 300 Sight Range 16 Terrain Scan Density 10 Evasion (%) 40 Recoil Reduction 2 Item Schematics ----------------- None Robot Schematics ------------------ None Fabricated ------------ Nothing Repaired ---------- Nothing Alien Tech Used ----------------- None Achievements -------------- None Challenges ------------ None Game ------ Seed TractorGyrokineticFrame Manual? 0 Play Time 00:03:43 Cumulative 117.5 hours Start 2025.05.30 @ 00:19:35 End 2025.05.30 @ 00:22:15 Sessions 1 Manual Loads 0 Difficulty Rogue Special Mode None Game No. 302 Rogue 302 Adventurer 0 Explorer 0 Win Type - Total 2 Types 2/0/0/0/0/0/0/0/0/0 Lore% 59 Gallery% 52 Achievement% 44 Wizard Run 0 Options --------- Layout 0 ASCII 0 Keyboard 0 Movement Numpad Keybinds 0 Fullscreen 2 Font 18/Terminus Map View 76x50 Zoom Use 0% Tactical HUD 1 Map Filters NONE Filters NONE Steam 1 RUN: a52f6912-ad2f-4deb-8cad-a9d46e463d4c